[Event "CZE-ch Youth G10-G12-G14 2022"]
[Site "Luhacovice"]
[Date "2022.03.17"]
[Round "7.22"]
[White "Kubatova Ema"]
[Black "Kavanova Valentyna"]
[Result "0-1"]
[ECO "C01"]
[WhiteElo "1183"]
[BlackElo "1000"]
[Annotator "NA"]
[PlyCount "106"]
[EventDate "2022.03.12"]
[EventType "swiss"]
[EventCountry "CZE"]
[SourceTitle "playchess.com"]
[Source "ChessBase"]
[SourceQuality "1"]
[TimeControl "40/5400+30:1800+30"]

1. e4 {[%emt 0:00:06]} e6 {[%emt 0:00:02]} 2. d4 {[%emt 0:00:16]} d5 {[%emt 0:00:30]} 3. exd5 {[%emt 0:00:16]} exd5 {[%emt 0:00:03]} 4. Nc3 {[%emt 0:00:52]} Nc6 {[%emt 0:00:04]} 5. Nf3 {[%emt 0:02:54]} Bg4 {[%emt 0:00:13]} 6. Bd3 {[%emt 0:01:33]} Bd6 {[%emt 0:01:05]} 7. Be3 {[%emt 0:02:06]} Nge7 {[%emt 0:01:22]} 8. O-O {[%emt 0:13:20]} Qd7 {[%emt 0:00:07]} 9. a3 {[%emt 0:02:20]} O-O-O {[%emt 0:00:03]} 10. Nb5 {[%emt 0:01:35]} h5 {[%emt 0:01:18]} 11. Nxd6+ {[%emt 0:02:27]} Qxd6 {[%emt 0:00:11]} 12. h3 {[%emt 0:17:22]} Bxf3 {[%emt 0:01:06]} 13. Qxf3 {[%emt 0:00:12]} f6 {[%emt 0:01:07]} 14. Bf5+ {[%emt 0:09:42]} Nxf5 {[%emt 0:01:33]} 15. Qxf5+ {[%emt 0:00:13]} Kb8 {[%emt 0:00:56]} 16. Bf4 {[%emt 0:06:24]} Nxd4 {[%emt 0:00:38]} 17. Bxd6 {[%emt 0:00:53]} Nxf5 {[%emt 0:00:14]} 18. Bh2 {[%emt 0:01:22]} g5 {[%emt 0:00:54]} 19. g3 {[%emt 0:04:17]} g4 {[%emt 0:00:34]} 20. h4 {[%emt 0:01:12]} Nd4 {[%emt 0:01:16]} 21. Rfd1 {[%emt 0:08:14]} Nf3+ {[%emt 0:01:53]} 22. Kg2 {[%emt 0:01:07]} Rhe8 {[%emt 0:00:42]} 23. c3 {[%emt 0:02:47]} f5 {[%emt 0:00:53]} 24. Rac1 {[%emt 0:02:24]} Re5 {[%emt 0:03:21]} 25. Bg1 {[%emt 0:06:34]} Rde8 {[%emt 0:00:39]} 26. Kf1 {[%emt 0:03:48]} b6 {[%emt 0:01:20]} 27. b3 {[%emt 0:03:19]} Kb7 {[%emt 0:00:45]} 28. Rb1 {[%emt 0:01:26]} Re2 {[%emt 0:00:38]} 29. Rbc1 {[%emt 0:01:54]} a5 {[%emt 0:00:35]} 30. a4 {[%emt 0:00:48]} Ka6 {[%emt 0:00:35]} 31. Ra1 {[%emt 0:01:08]} c5 {[%emt 0:00:37]} 32. Rac1 {[%emt 0:00:33]} b5 {[%emt 0:00:51]} 33. axb5+ {[%emt 0:00:14]} Kxb5 {[%emt 0:00:12]} 34. Ra1 {[%emt 0:00:37]} d4 {[%emt 0:01:03]} 35. cxd4 {[%emt 0:00:54]} cxd4 {[%emt 0:00:11]} 36. Rac1 {[%emt 0:00:57]} d3 {[%emt 0:01:08]} 37. Ra1 {[%emt 0:01:02]} Kb4 {[%emt 0:01:01]} 38. Rac1 {[%emt 0:00:46]} Kb5 {[%emt 0:03:24]} 39. Ra1 {[%emt 0:00:19]} Kc5 {[%emt 0:00:10]} 40. Rac1+ {[%emt 0:00:33]} Kb4 {[%emt 0:00:05]} 41. Ra1 {[%emt 0:30:33]} Nd2+ {[%emt 0:31:54]} 42. Kg2 {[%emt 0:00:39]} Nxb3 {[%emt 0:04:08]} 43. Rab1 {[%emt 0:00:35]} Kc4 {[%emt 0:00:19]} 44. Bh2 {[%emt 0:01:03]} a4 {[%emt 0:00:17]} 45. Bg1 {[%emt 0:00:08]} a3 {[%emt 0:00:04]} 46. Bh2 {[%emt 0:00:23]} a2 {[%emt 0:00:20]} 47. Ra1 {[%emt 0:00:13]} Nxa1 {[%emt 0:00:06]} 48. Rxa1 {[%emt 0:00:05]} d2 {[%emt 0:00:08]} 49. Rxa2 {[%emt 0:00:09]} d1=Q {[%emt 0:00:11]} 50. Rxe2 {[%emt 0:00:13]} Rxe2 {[%emt 0:00:08]} 51. Bg1 {[%emt 0:00:09]} Re1 {[%emt 0:00:08]} 52. Bh2 {[%emt 0:00:23]} Rh1 {[%emt 0:00:05]} 53. Bg1 {[%emt 0:00:25]} Qxg1# {[%emt 0:00:06]} 0-1

[Event "CZE-ch Youth G10-G12-G14 2022"]
[Site "Luhacovice"]
[Date "2022.03.17"]
[Round "7.23"]
[White "Krisicova Neli"]
[Black "Havelkova Kamila"]
[Result "1-0"]
[ECO "A01"]
[WhiteElo "1093"]
[BlackElo "1092"]
[Annotator "NA"]
[PlyCount "51"]
[EventDate "2022.03.12"]
[EventType "swiss"]
[EventCountry "CZE"]
[SourceTitle "playchess.com"]
[Source "ChessBase"]
[SourceQuality "1"]
[TimeControl "40/5400+30:1800+30"]

1. b3 {[%emt 0:00:03]} e5 {[%emt 0:00:40]} 2. Bb2 {[%emt 0:00:18]} Nc6 {[%emt 0:01:21]} 3. e3 {[%emt 0:00:45]} Nf6 {[%emt 0:01:12]} 4. Bb5 {[%emt 0:01:35]} Bd6 {[%emt 0:02:22]} 5. Na3 {[%emt 0:02:03]} e4 {[%emt 0:03:40]} 6. Nc4 {[%emt 0:01:51]} Bc5 {[%emt 0:04:05]} 7. Ne2 {[%emt 0:02:54]} O-O {[%emt 0:01:49]} 8. Nf4 {[%emt 0:02:06]} Ne7 {[%emt 0:04:16]} 9. Bxf6 {[%emt 0:01:48]} g6 {[%emt 0:03:28]} 10. d4 {[%emt 0:03:27]} exd3 {[%emt 0:04:22]} 11. Nxd3 {[%emt 0:01:03]} b6 {[%emt 0:06:14]} 12. Nxc5 {[%emt 0:02:44]} bxc5 {[%emt 0:01:21]} 13. O-O {[%emt 0:01:35]} Qe8 {[%emt 0:03:43]} 14. Qb1 {[%emt 0:03:45]} Nf5 {[%emt 0:01:40]} 15. Qb2 {[%emt 0:01:24]} Qe4 {[%emt 0:01:34]} 16. Rfe1 {[%emt 0:02:05]} Bb7 {[%emt 0:01:07]} 17. f3 {[%emt 0:01:20]} Qe6 {[%emt 0:02:44]} 18. e4 {[%emt 0:01:28]} Nh6 {[%emt 0:02:07]} 19. Rad1 {[%emt 0:03:10]} c6 {[%emt 0:00:57]} 20. Rd6 {[%emt 0:01:20]} Qe8 {[%emt 0:00:48]} 21. Bh8 {[%emt 0:00:43]} f6 {[%emt 0:07:03]} 22. Bxf6 {[%emt 0:01:04]} Rxf6 {[%emt 0:00:30]} 23. Qxf6 {[%emt 0:00:30]} cxb5 {[%emt 0:00:30]} 24. Ne5 {[%emt 0:00:30]} c4 {[%emt 0:02:11]} 25. Red1 {[%emt 0:01:10]} Nf7 {[%emt 0:01:55]} 26. Qg7+ {[%emt 0:01:32]} 1-0

[Event "CZE-ch Youth G10-G12-G14 2022"]
[Site "Luhacovice"]
[Date "2022.03.17"]
[Round "7.24"]
[White "Archlebova Iva"]
[Black "Mojzisova Barbora"]
[Result "0-1"]
[ECO "C50"]
[WhiteElo "1028"]
[BlackElo "1089"]
[Annotator "NA"]
[PlyCount "66"]
[EventDate "2022.03.12"]
[EventType "swiss"]
[EventCountry "CZE"]
[SourceTitle "playchess.com"]
[Source "ChessBase"]
[SourceQuality "1"]
[TimeControl "40/5400+30:1800+30"]

1. e4 {[%emt 0:00:05]} e5 {[%emt 0:00:16]} 2. Bc4 {[%emt 0:00:32]} Nc6 {[%emt 0:01:12]} 3. Nf3 {[%emt 0:00:43]} Nf6 {[%emt 0:01:44]} 4. d3 {[%emt 0:01:25]} Bc5 {[%emt 0:04:08]} 5. Nc3 {[%emt 0:01:26]} d6 {[%emt 0:02:35]} 6. h3 {[%emt 0:01:44]} Be6 {[%emt 0:02:36]} 7. Bb3 {[%emt 0:00:24]} Qe7 {[%emt 0:01:19]} 8. Bg5 {[%emt 0:01:56]} h6 {[%emt 0:01:58]} 9. Nd5 {[%emt 0:01:45]} Bxd5 {[%emt 0:04:14]} 10. exd5 {[%emt 0:03:19]} Nd4 {[%emt 0:04:19]} 11. Nxd4 {[%emt 0:02:57]} exd4+ {[%emt 0:02:56]} 12. Qe2 {[%emt 0:01:20]} Qxe2+ {[%emt 0:01:23]} 13. Kxe2 {[%emt 0:00:28]} hxg5 {[%emt 0:01:15]} 14. Ba4+ {[%emt 0:00:27]} Kf8 {[%emt 0:01:24]} 15. Rae1 {[%emt 0:01:16]} a6 {[%emt 0:02:10]} 16. Bb3 {[%emt 0:01:11]} Re8+ {[%emt 0:01:13]} 17. Kd1 {[%emt 0:00:29]} Rxe1+ {[%emt 0:01:38]} 18. Rxe1 {[%emt 0:00:07]} g6 {[%emt 0:03:15]} 19. f3 {[%emt 0:01:42]} Kg7 {[%emt 0:03:43]} 20. a3 {[%emt 0:00:46]} Re8 {[%emt 0:01:22]} 21. c3 {[%emt 0:04:27]} Rxe1+ {[%emt 0:01:10]} 22. Kxe1 {[%emt 0:00:29]} dxc3 {[%emt 0:00:49]} 23. bxc3 {[%emt 0:00:32]} Bxa3 {[%emt 0:00:42]} 24. c4 {[%emt 0:00:35]} Nd7 {[%emt 0:01:25]} 25. Ba4 {[%emt 0:00:41]} Nb6 {[%emt 0:00:40]} 26. Bb3 {[%emt 0:00:49]} Kf6 {[%emt 0:00:22]} 27. g4 {[%emt 0:01:33]} Ke5 {[%emt 0:00:38]} 28. Ke2 {[%emt 0:00:39]} Bc5 {[%emt 0:01:12]} 29. Ba2 {[%emt 0:01:43]} Kf4 {[%emt 0:00:34]} 30. Bb3 {[%emt 0:01:02]} Kg3 {[%emt 0:00:39]} 31. Kd2 {[%emt 0:03:03]} Kxf3 {[%emt 0:00:24]} 32. Kc3 {[%emt 0:02:16]} Ke3 {[%emt 0:01:01]} 33. Bd1 {[%emt 0:01:37]} f5 {[%emt 0:00:53]} 0-1

[Event "CZE-ch Youth G10-G12-G14 2022"]
[Site "Luhacovice"]
[Date "2022.03.17"]
[Round "7.25"]
[White "Souralova, Alena"]
[Black "Kubatova Beta"]
[Result "1-0"]
[ECO "B78"]
[WhiteElo "1010"]
[BlackElo "1071"]
[Annotator "NA"]
[PlyCount "90"]
[EventDate "2022.03.12"]
[EventType "swiss"]
[EventCountry "CZE"]
[SourceTitle "playchess.com"]
[Source "ChessBase"]
[SourceQuality "1"]
[TimeControl "40/5400+30:1800+30"]

1. e4 {[%emt 0:00:04]} c5 {[%emt 0:00:12]} 2. Nf3 {[%emt 0:00:23]} Nc6 {[%emt 0:00:20]} 3. d4 {[%emt 0:00:44]} cxd4 {[%emt 0:00:46]} 4. Nxd4 {[%emt 0:00:30]} g6 {[%emt 0:00:32]} 5. Nc3 {[%emt 0:00:31]} Bg7 {[%emt 0:00:08]} 6. Be3 {[%emt 0:00:41]} Nf6 {[%emt 0:00:28]} 7. Bc4 {[%emt 0:12:22]} O-O {[%emt 0:03:19]} 8. Bb3 {[%emt 0:01:44]} d6 {[%emt 0:01:16]} 9. f3 {[%emt 0:05:01]} Bd7 {[%emt 0:00:18]} 10. Qd2 {[%emt 0:01:15]} Rc8 {[%emt 0:02:09]} 11. O-O-O {[%emt 0:00:50]} Ne5 {[%emt 0:13:25]} 12. Bh6 {[%emt 0:04:14]} Nc4 {[%emt 0:02:53]} 13. Bxc4 {[%emt 0:04:15]} Rxc4 {[%emt 0:02:04]} 14. Bxg7 {[%emt 0:01:06]} Kxg7 {[%emt 0:00:07]} 15. h4 {[%emt 0:00:11]} h5 {[%emt 0:00:20]} 16. g4 {[%emt 0:00:40]} hxg4 {[%emt 0:05:44]} 17. fxg4 {[%emt 0:00:09]} Bxg4 {[%emt 0:00:14]} 18. Rdg1 {[%emt 0:01:16]} Rh8 {[%emt 0:14:45]} 19. Nd5 {[%emt 0:02:12]} Nxd5 {[%emt 0:08:34]} 20. exd5 {[%emt 0:00:15]} Bh5 {[%emt 0:00:31]} 21. Nf5+ {[%emt 0:01:33]} Kg8 {[%emt 0:00:40]} 22. Rg3 {[%emt 0:04:14]} Rg4 {[%emt 0:03:02]} 23. Qc3 {[%emt 0:02:02]} gxf5 {[%emt 0:13:07]} 24. Rhg1 {[%emt 0:02:10]} Qd7 {[%emt 0:01:47]} 25. Qd4 {[%emt 0:06:34]} Rh7 {[%emt 0:02:41]} 26. Qxa7 {[%emt 0:02:17]} Rhg7 {[%emt 0:01:06]} 27. Qb8+ {[%emt 0:01:49]} Kh7 {[%emt 0:00:12]} 28. Rxg4 {[%emt 0:00:27]} fxg4 {[%emt 0:00:20]} 29. Qf8 {[%emt 0:00:37]} Rg8 {[%emt 0:00:35]} 30. Qxg8+ {[%emt 0:00:23]} Kxg8 {[%emt 0:00:07]} 31. c4 {[%emt 0:00:14]} Qa4 {[%emt 0:00:20]} 32. b3 {[%emt 0:00:41]} Qxa2 {[%emt 0:00:27]} 33. Rg3 {[%emt 0:00:14]} Qf2 {[%emt 0:00:33]} 34. Rd3 {[%emt 0:00:40]} g3 {[%emt 0:00:41]} 35. Rd2 {[%emt 0:00:48]} Qf3 {[%emt 0:00:21]} 36. Kb2 {[%emt 0:00:40]} g2 {[%emt 0:00:16]} 37. Rxg2+ {[%emt 0:00:07]} Qxg2+ {[%emt 0:00:07]} 38. Kc3 {[%emt 0:00:02]} Qa2 {[%emt 0:00:36]} 39. b4 {[%emt 0:00:09]} Be2 {[%emt 0:00:17]} 40. c5 {[%emt 0:00:35]} Qc4+ {[%emt 0:00:17]} 41. Kd2 {[%emt 0:30:09]} Qd3+ {[%emt 0:30:30]} 42. Ke1 {[%emt 0:00:38]} Bg4 {[%emt 0:00:39]} 43. Kf2 {[%emt 0:00:19]} Qf3+ {[%emt 0:00:08]} 44. Kg1 {[%emt 0:00:13]} Bh3 {[%emt 0:00:13]} 45. h5 {[%emt 0:00:16]} Qg2# {[%emt 0:00:13]} 1-0

[Event "CZE-ch Youth G10-G12-G14 2022"]
[Site "Luhacovice"]
[Date "2022.03.17"]
[Round "7.26"]
[White "Pruskova, Justyna"]
[Black "Maresova Denisa"]
[Result "0-1"]
[ECO "B22"]
[WhiteElo "1003"]
[BlackElo "1103"]
[Annotator "NA"]
[PlyCount "72"]
[EventDate "2022.03.12"]
[EventType "swiss"]
[EventCountry "CZE"]
[SourceTitle "playchess.com"]
[Source "ChessBase"]
[SourceQuality "1"]
[TimeControl "40/5400+30:1800+30"]

1. e4 {[%emt 0:00:04]} e6 {[%emt 0:00:09]} 2. d4 {[%emt 0:00:15]} d5 {[%emt 0:00:06]} 3. Nd2 {[%emt 0:00:29]} c5 {[%emt 0:04:11]} 4. exd5 {[%emt 0:00:56]} Qxd5 {[%emt 0:05:15]} 5. c3 {[%emt 0:02:04]} Nf6 {[%emt 0:03:42]} 6. Ngf3 {[%emt 0:01:34]} a6 {[%emt 0:03:26]} 7. Bc4 {[%emt 0:01:08]} Qd8 {[%emt 0:05:53]} 8. O-O {[%emt 0:01:34]} Be7 {[%emt 0:02:33]} 9. dxc5 {[%emt 0:01:01]} Bxc5 {[%emt 0:03:47]} 10. Nb3 {[%emt 0:09:36]} Bb6 {[%emt 0:07:27]} 11. Bg5 {[%emt 0:02:59]} Nc6 {[%emt 0:05:11]} 12. Re1 {[%emt 0:02:33]} O-O {[%emt 0:04:44]} 13. Nfd4 {[%emt 0:07:49]} h6 {[%emt 0:06:07]} 14. Bh4 {[%emt 0:01:01]} Bd7 {[%emt 0:01:27]} 15. Nxc6 {[%emt 0:11:01]} Bxc6 {[%emt 0:01:55]} 16. Nd4 {[%emt 0:01:00]} Rc8 {[%emt 0:02:06]} 17. Bb3 {[%emt 0:02:39]} Re8 {[%emt 0:03:37]} 18. Bc2 {[%emt 0:01:08]} Qd5 {[%emt 0:04:50]} 19. f3 {[%emt 0:02:02]} e5 {[%emt 0:03:58]} 20. Bxf6 {[%emt 0:01:59]} gxf6 {[%emt 0:01:02]} 21. Qd3 {[%emt 0:03:19]} e4 {[%emt 0:10:24]} 22. fxe4 {[%emt 0:01:56]} Qg5 {[%emt 0:01:07]} 23. g3 {[%emt 0:03:38]} Bb5 {[%emt 0:03:33]} 24. Qe3 {[%emt 0:04:10]} Qxe3+ {[%emt 0:00:32]} 25. Rxe3 {[%emt 0:00:17]} Bxd4 {[%emt 0:00:18]} 26. cxd4 {[%emt 0:00:52]} Rxc2 {[%emt 0:00:17]} 27. Rf3 {[%emt 0:01:25]} Rxe4 {[%emt 0:00:56]} 28. Rxf6 {[%emt 0:00:27]} Rxd4 {[%emt 0:01:11]} 29. Rxh6 {[%emt 0:00:36]} Rxb2 {[%emt 0:00:56]} 30. Rc1 {[%emt 0:01:11]} Bc6 {[%emt 0:00:47]} 31. Rf6 {[%emt 0:02:04]} Rg2+ {[%emt 0:01:14]} 32. Kf1 {[%emt 0:01:09]} Rxh2 {[%emt 0:00:32]} 33. Ke1 {[%emt 0:00:55]} Rdd2 {[%emt 0:01:27]} 34. Rf5 {[%emt 0:03:19]} Rde2+ {[%emt 0:02:47]} 35. Kf1 {[%emt 0:00:48]} Rxa2 {[%emt 0:01:30]} 36. Rf2 {[%emt 0:02:52]} Rh1# {[%emt 0:00:45]} 0-1

[Event "CZE-ch Youth G10-G12-G14 2022"]
[Site "Luhacovice"]
[Date "2022.03.17"]
[Round "7.27"]
[White "Zezulova Sara"]
[Black "Martinkovicova Nela"]
[Result "0-1"]
[ECO "C27"]
[WhiteElo "1000"]
[BlackElo "1032"]
[Annotator "NA"]
[PlyCount "65"]
[EventDate "2022.03.12"]
[EventType "swiss"]
[EventCountry "CZE"]
[SourceTitle "playchess.com"]
[Source "ChessBase"]
[SourceQuality "1"]
[TimeControl "40/5400+30:1800+30"]

1. e4 {[%emt 0:00:09]} e5 {[%emt 0:00:07]} 2. Bc4 {[%emt 0:00:17]} Bc5 {[%emt 0:00:39]} 3. Nf3 {[%emt 0:00:42]} Nf6 {[%emt 0:00:29]} 4. d3 {[%emt 0:00:53]} d6 {[%emt 0:03:59]} 5. Nc3 {[%emt 0:02:22]} Bg4 {[%emt 0:01:14]} 6. Na4 {[%emt 0:04:06]} Nc6 {[%emt 0:01:32]} 7. c3 {[%emt 0:02:12]} a6 {[%emt 0:02:59]} 8. Nxc5 {[%emt 0:03:15]} dxc5 {[%emt 0:01:27]} 9. a3 {[%emt 0:01:39]} h6 {[%emt 0:03:58]} 10. Be3 {[%emt 0:03:09]} b6 {[%emt 0:01:45]} 11. h3 {[%emt 0:02:33]} Bh5 {[%emt 0:01:42]} 12. Qd2 {[%emt 0:03:15]} Bxf3 {[%emt 0:03:24]} 13. gxf3 {[%emt 0:01:42]} Qd6 {[%emt 0:03:46]} 14. O-O-O {[%emt 0:03:24]} O-O-O {[%emt 0:01:08]} 15. Rhg1 {[%emt 0:02:30]} Qf8 {[%emt 0:08:12]} 16. Bxa6+ {[%emt 0:06:09]} Kb8 {[%emt 0:00:43]} 17. Bc4 {[%emt 0:01:24]} Na5 {[%emt 0:01:11]} 18. Ba2 {[%emt 0:03:13]} c4 {[%emt 0:01:50]} 19. Qc2 {[%emt 0:03:25]} b5 {[%emt 0:06:15]} 20. dxc4 {[%emt 0:05:38]} Rxd1+ {[%emt 0:01:04]} 21. Rxd1 {[%emt 0:02:57]} bxc4 {[%emt 0:01:43]} 22. b3 {[%emt 0:04:06]} cxb3 {[%emt 0:01:25]} 23. Bxb3 {[%emt 0:00:32]} Qxa3+ {[%emt 0:01:43]} 24. Qb2 {[%emt 0:03:33]} Nxb3+ {[%emt 0:01:35]} 25. Kb1 {[%emt 0:01:17]} Qxb2+ {[%emt 0:04:59]} 26. Kxb2 {[%emt 0:00:27]} Na5 {[%emt 0:02:57]} 27. Ra1 {[%emt 0:00:30]} Nc4+ {[%emt 0:00:30]} 28. Kb3 {[%emt 0:00:30]} Nxe3 {[%emt 0:00:30]} 29. fxe3 {[%emt 0:00:30]} Rd8 {[%emt 0:00:30]} 30. Kc4 {[%emt 0:00:30]} Re8 {[%emt 0:01:49]} 31. Ra5 {[%emt 0:02:10]} g5 {[%emt 0:05:21]} 32. Ra6 {[%emt 0:00:24]} Nd7 {[%emt 0:03:05]} 33. Kb4 {[%emt 0:01:26]} 0-1

[Event "CZE-ch Youth G10-G12-G14 2022"]
[Site "Luhacovice"]
[Date "2022.03.17"]
[Round "7.28"]
[White "Kubickova Linda"]
[Black "Spetlova Stella"]
[Result "1/2-1/2"]
[ECO "B23"]
[WhiteElo "1000"]
[BlackElo "1000"]
[Annotator "NA"]
[PlyCount "60"]
[EventDate "2022.03.12"]
[EventType "swiss"]
[EventCountry "CZE"]
[SourceTitle "playchess.com"]
[Source "ChessBase"]
[SourceQuality "1"]
[TimeControl "40/5400+30:1800+30"]

1. Nc3 {[%emt 0:00:06]} c5 {[%emt 0:00:37]} 2. e4 {[%emt 0:00:35]} d6 {[%emt 0:01:55]} 3. Bc4 {[%emt 0:01:34]} Nc6 {[%emt 0:02:00]} 4. Bb5 {[%emt 0:01:15]} Bd7 {[%emt 0:02:23]} 5. d3 {[%emt 0:02:53]} Nf6 {[%emt 0:02:19]} 6. h3 {[%emt 0:01:36]} g6 {[%emt 0:01:39]} 7. f4 {[%emt 0:01:39]} Bg7 {[%emt 0:05:07]} 8. Nf3 {[%emt 0:03:28]} e5 {[%emt 0:05:39]} 9. fxe5 {[%emt 0:03:02]} Nxe5 {[%emt 0:00:30]} 10. Nxe5 {[%emt 0:01:58]} dxe5 {[%emt 0:01:01]} 11. Bg5 {[%emt 0:03:14]} O-O {[%emt 0:05:40]} 12. Qf3 {[%emt 0:02:03]} Bxb5 {[%emt 0:01:03]} 13. Nxb5 {[%emt 0:00:56]} a6 {[%emt 0:03:34]} 14. Nc3 {[%emt 0:02:02]} Qd6 {[%emt 0:14:03]} 15. Bxf6 {[%emt 0:02:44]} Qxf6 {[%emt 0:03:01]} 16. O-O-O {[%emt 0:02:10]} Qxf3 {[%emt 0:02:53]} 17. gxf3 {[%emt 0:00:28]} Bh6+ {[%emt 0:03:25]} 18. Kb1 {[%emt 0:00:33]} b5 {[%emt 0:00:59]} 19. Nd5 {[%emt 0:01:46]} c4 {[%emt 0:14:31]} 20. dxc4 {[%emt 0:01:10]} bxc4 {[%emt 0:01:03]} 21. Nc7 {[%emt 0:01:31]} Ra7 {[%emt 0:04:18]} 22. Nd5 {[%emt 0:03:21]} Bg7 {[%emt 0:03:28]} 23. h4 {[%emt 0:01:49]} Rb7 {[%emt 0:01:12]} 24. b3 {[%emt 0:06:11]} cxb3 {[%emt 0:00:30]} 25. axb3 {[%emt 0:00:51]} h5 {[%emt 0:00:29]} 26. Rd3 {[%emt 0:01:09]} a5 {[%emt 0:02:34]} 27. c4 {[%emt 0:02:39]} a4 {[%emt 0:00:39]} 28. b4 {[%emt 0:00:40]} Ra8 {[%emt 0:00:29]} 29. c5 {[%emt 0:00:50]} Raa7 {[%emt 0:02:18]} 30. Ka2 {[%emt 0:00:59]} Bf8 {[%emt 0:00:34]} 1/2-1/2

[Event "CZE-ch Youth G10-G12-G14 2022"]
[Site "Luhacovice"]
[Date "2022.03.17"]
[Round "7.29"]
[White "Rybackova, Lucie"]
[Black "Dobsa, Emma"]
[Result "1/2-1/2"]
[ECO "C45"]
[WhiteElo "1612"]
[BlackElo "1425"]
[Annotator "NA"]
[PlyCount "62"]
[EventDate "2022.03.12"]
[EventType "swiss"]
[EventCountry "CZE"]
[SourceTitle "playchess.com"]
[Source "ChessBase"]
[SourceQuality "1"]
[TimeControl "40/5400+30:1800+30"]

1. e4 {[%emt 0:00:25]} e5 {[%emt 0:00:18]} 2. Nf3 {[%emt 0:00:28]} Nc6 {[%emt 0:00:05]} 3. d4 {[%emt 0:00:37]} exd4 {[%emt 0:00:09]} 4. Nxd4 {[%emt 0:00:49]} Nf6 {[%emt 0:00:36]} 5. Nxc6 {[%emt 0:00:35]} bxc6 {[%emt 0:00:12]} 6. e5 {[%emt 0:01:10]} Qe7 {[%emt 0:00:15]} 7. Qe2 {[%emt 0:00:27]} Nd5 {[%emt 0:00:18]} 8. c4 {[%emt 0:00:54]} Nb6 {[%emt 0:00:18]} 9. Nc3 {[%emt 0:02:14]} Ba6 {[%emt 0:00:12]} 10. b3 {[%emt 0:07:16]} O-O-O {[%emt 0:01:03]} 11. Bb2 {[%emt 0:01:20]} Re8 {[%emt 0:03:59]} 12. f4 {[%emt 0:04:05]} f6 {[%emt 0:03:52]} 13. O-O-O {[%emt 0:13:28]} fxe5 {[%emt 0:01:19]} 14. fxe5 {[%emt 0:01:16]} Qxe5 {[%emt 0:00:25]} 15. Qd2 {[%emt 0:01:33]} Qe3 {[%emt 0:07:18]} 16. c5 {[%emt 0:03:12]} Qxd2+ {[%emt 0:05:32]} 17. Kxd2 {[%emt 0:17:21]} Bxf1 {[%emt 0:00:24]} 18. cxb6 {[%emt 0:00:24]} Bxg2 {[%emt 0:01:36]} 19. bxa7 {[%emt 0:00:45]} Kb7 {[%emt 0:01:00]} 20. Rhg1 {[%emt 0:00:41]} Bh3 {[%emt 0:05:18]} 21. Rg3 {[%emt 0:02:03]} Bf5 {[%emt 0:01:25]} 22. Rf1 {[%emt 0:02:23]} Bg6 {[%emt 0:02:57]} 23. Rg4 {[%emt 0:13:01]} Kxa7 {[%emt 0:15:03]} 24. Ne2 {[%emt 0:03:08]} Kb7 {[%emt 0:08:02]} 25. Ng3 {[%emt 0:12:15]} Rg8 {[%emt 0:09:19]} 26. h4 {[%emt 0:05:53]} Re7 {[%emt 0:07:38]} 27. h5 {[%emt 0:00:25]} Be8 {[%emt 0:02:35]} 28. Rgf4 {[%emt 0:00:10]} Bxh5 {[%emt 0:07:28]} 29. Nxh5 {[%emt 0:00:29]} Re8 {[%emt 0:00:33]} 30. Rf7 {[%emt 0:00:45]} Bb4+ {[%emt 0:03:38]} 31. Bc3 {[%emt 0:00:12]} Bxc3+ {[%emt 0:01:38]} 1/2-1/2

[Event "CZE-ch Youth G10-G12-G14 2022"]
[Site "Luhacovice"]
[Date "2022.03.17"]
[Round "7.30"]
[White "Barteckova, Denisa"]
[Black "Janouskova, Adela"]
[Result "1-0"]
[ECO "B33"]
[WhiteElo "1323"]
[BlackElo "1585"]
[Annotator "NA"]
[PlyCount "81"]
[EventDate "2022.03.12"]
[EventType "swiss"]
[EventCountry "CZE"]
[SourceTitle "playchess.com"]
[Source "ChessBase"]
[SourceQuality "1"]
[TimeControl "40/5400+30:1800+30"]

1. e4 {[%emt 0:00:02]} c5 {[%emt 0:00:12]} 2. Nf3 {[%emt 0:00:06]} Nc6 {[%emt 0:00:09]} 3. d4 {[%emt 0:00:05]} cxd4 {[%emt 0:00:05]} 4. Nxd4 {[%emt 0:00:06]} Nf6 {[%emt 0:00:05]} 5. Nc3 {[%emt 0:00:54]} e5 {[%emt 0:00:05]} 6. Ndb5 {[%emt 0:00:10]} d6 {[%emt 0:00:05]} 7. Bg5 {[%emt 0:00:22]} a6 {[%emt 0:00:05]} 8. Na3 {[%emt 0:00:34]} b5 {[%emt 0:00:04]} 9. Nd5 {[%emt 0:00:29]} Be7 {[%emt 0:00:05]} 10. Nxe7 {[%emt 0:06:39]} Qxe7 {[%emt 0:01:07]} 11. c3 {[%emt 0:02:11]} h6 {[%emt 0:01:41]} 12. Bh4 {[%emt 0:03:22]} g5 {[%emt 0:01:17]} 13. Bg3 {[%emt 0:00:35]} Be6 {[%emt 0:03:43]} 14. f3 {[%emt 0:01:00]} Nh5 {[%emt 0:03:50]} 15. Nc2 {[%emt 0:01:06]} Nxg3 {[%emt 0:03:44]} 16. hxg3 {[%emt 0:00:11]} Qd7 {[%emt 0:08:54]} 17. a4 {[%emt 0:03:10]} Rb8 {[%emt 0:08:20]} 18. axb5 {[%emt 0:01:00]} axb5 {[%emt 0:03:26]} 19. Ne3 {[%emt 0:00:44]} Ne7 {[%emt 0:08:39]} 20. Qd3 {[%emt 0:08:51]} f5 {[%emt 0:05:22]} 21. exf5 {[%emt 0:01:33]} Nxf5 {[%emt 0:02:44]} 22. Nxf5 {[%emt 0:02:40]} Bxf5 {[%emt 0:00:08]} 23. Qd5 {[%emt 0:00:25]} Be6 {[%emt 0:02:23]} 24. Qe4 {[%emt 0:07:11]} Bf5 {[%emt 0:09:35]} 25. Qe3 {[%emt 0:00:34]} Qg7 {[%emt 0:03:00]} 26. Ra7 {[%emt 0:01:34]} Qf6 {[%emt 0:01:27]} 27. Ra6 {[%emt 0:02:16]} O-O {[%emt 0:01:44]} 28. g4 {[%emt 0:03:34]} Bc8 {[%emt 0:05:47]} 29. Ra7 {[%emt 0:03:52]} Be6 {[%emt 0:04:33]} 30. Qe4 {[%emt 0:03:42]} Rf7 {[%emt 0:03:03]} 31. Rxf7 {[%emt 0:00:28]} Bxf7 {[%emt 0:00:39]} 32. Bd3 {[%emt 0:00:22]} Qg7 {[%emt 0:01:57]} 33. Qc6 {[%emt 0:01:17]} Bg6 {[%emt 0:01:33]} 34. Qd5+ {[%emt 0:03:05]} Bf7 {[%emt 0:01:31]} 35. Qxd6 {[%emt 0:01:12]} Ra8 {[%emt 0:01:08]} 36. Rxh6 {[%emt 0:03:08]} Ra1+ {[%emt 0:02:14]} 37. Kd2 {[%emt 0:01:57]} Rg1 {[%emt 0:00:52]} 38. Qd8+ {[%emt 0:00:29]} Qf8 {[%emt 0:00:30]} 39. Rh8+ {[%emt 0:00:26]} Kxh8 {[%emt 0:00:26]} 40. Qxf8+ {[%emt 0:00:12]} Bg8 {[%emt 0:00:46]} 41. Qf6# {[%emt 0:30:19]} 1-0